[Event "Skagerrak Kragero 2022"]
[Site "Kragero"]
[Date "2022.06.02"]
[Round "1.3"]
[White "Machlik, Monika"]
[Black "Verbin, Valentina"]
[Result "1-0"]
[ECO "D36"]
[WhiteElo "2134"]
[BlackElo "2067"]
[Annotator "TA"]
[PlyCount "113"]
[EventDate "2022.06.02"]
[EventType "tourn"]
[EventCountry "NOR"]
[SourceTitle "playchess.com"]
[Source "ChessBase"]
[SourceQuality "1"]
[TimeControl "5400+30"]

{[%evp 25,113,0,25,11,13,0,41,38,55,52,79,85,100,111,93,7,8,8,8,8,11,11,6,7,8,8,10,0,0,0,9,14,16,14,14,18,37,3,22,0,0,-65,-62,-54,-70,-154,0,0,0,0,0,0,0,0,0,0,0,0,0,0,0,0,0,0,0,0,0,-13,0,0,0,-28,-32,-35,-34,-217,-14,-208,-29,-29,0,-20,16,0,8,0,0,0,158,168]} 1. d4 Nf6 2. c4 e6 3. a3 d5 4. Nc3 Be7 5. cxd5 exd5 6. Bg5 c6 7. Qc2 Nbd7 8. e3 O-O 9. Bd3 h6 10. Bh4 Re8 11. Nf3 Ne4 12. Bxe7 Qxe7 13. O-O a5 14. Rab1 {D36: Queen's Gambit Declined: Exchange Variation: Main line (5 Bg5 c6 6 Qc2).} Ndf6 15. Na4 {[#]} Ng4 $146 ({Predecessor:} 15... Nd7 16. h3 Rb8 17. b4 b5 18. Nc5 Ndxc5 19. dxc5 axb4 20. axb4 Ng5 21. Nd4 Nxh3+ 22. gxh3 Bxh3 {0-1 (61) Xiao,Y (2216)-Zhao,S (2181) Tianjin 2019}) 16. Nb6 {White is slightly better.} Rb8 17. h3 Ngxf2 18. Rxf2 Nxf2 19. Qxf2 Qxe3 20. Re1 (20. Qxe3 $16 Rxe3 21. Ne5) 20... Qxf2+ $11 21. Kxf2 {[%cal Re1e8]} Rxe1 22. Kxe1 Be6 23. Nd2 $1 {[%mdl 1024] White has compensation.} Kf8 24. Nb3 $1 Ke7 25. Nxa5 Kd6 26. Nb3 Kc7 27. Na4 b6 28. Kd2 Ra8 29. Nc3 Kd6 30. Nc1 g5 31. Nd1 c5 32. Ne2 f5 {[%cal Bf7f5,Bf5f4][%mdl 32]} 33. Ne3 (33. Ndc3 $11) 33... Rf8 $1 $15 ({Reject} 33... f4 34. Nf5+ Bxf5 35. Bxf5 $11) 34. g4 {[%cal Rd3f5]} f4 35. Nf5+ (35. Nd1 $1 $15) 35... Kc6 $2 (35... Bxf5 $17 36. gxf5 h5) 36. Ne7+ $11 Kd6 37. Ng6 Rf6 38. Ne5 Rf8 39. Ng1 Rh8 40. Ngf3 cxd4 41. Ng6 Rg8 42. Nxd4 Bf7 43. Nf5+ Ke6 44. Nge7 Rh8 45. Nc6 h5 46. Ncd4+ Ke5 47. Nf3+ {Pair of Knights!} Kf6 48. Kc3 hxg4 49. hxg4 Rh3 50. N3d4 {[#]} (50. Ng1 $15 Rh2 51. Nf3) 50... Rh2 $2 (50... Bg6 $1 $19 {White must now prevent ...Bxf5.} 51. b4 Bxf5 52. Nxf5 Ke5) 51. Be2 $2 (51. Nd6 $11 {and White is okay.}) 51... Be8 $2 (51... Bg6 $19 {Hoping for ...Bxf5.} 52. Kd3 Rh3+ 53. Kd2 Bxf5 54. Nxf5 Ke5) 52. Bf3 $1 Bf7 53. a4 Ke5 54. b4 {Strongly threatening Nc6+.} Bg6 {Threatens to win with ...Rh3.} 55. a5 bxa5 56. bxa5 {Nc6+ is the strong threat.} Ra2 $2 {[#]} (56... Bxf5 $11 57. gxf5 Rh6) 57. Nc6+ $1 {[%emt 1:58:47] What a bad dream for Black.  Weighted Error Value: White=0.28 (precise) /Black=0.33} 1-0

[Event "Skagerrak Kragero 2022"]
[Site "Kragero"]
[Date "2022.06.02"]
[Round "1.4"]
[White "Tarleva, Diana"]
[Black "Skaslien, Ingrid"]
[Result "1-0"]
[ECO "B56"]
[WhiteElo "2160"]
[BlackElo "1884"]
[Annotator "TA"]
[PlyCount "36"]
[EventDate "2022.06.02"]
[EventType "tourn"]
[EventCountry "NOR"]
[SourceTitle "playchess.com"]
[Source "ChessBase"]
[SourceQuality "1"]
[TimeControl "5400+30"]

{[%evp 11,36,14,36,6,11,0,0,-35,9,2,27,-18,0,-13,0,-6,0,0,33,27,38,52,75,33,44,38,679]} 1. e4 c5 2. Nf3 d6 3. d4 cxd4 4. Nxd4 Nf6 5. Nc3 e5 6. Nb3 Be6 7. Bg5 {B56: Classical Sicilian: Unusual Lines.} Be7 8. Bb5+ Nc6 {[%cal Bb8c6,Bc6b4,Bb4d3][%mdl 32]} 9. Nd5 {[#] The position is equal.} O-O $146 ({Predecessor:} 9... Nxd5 10. exd5 Bxg5 11. dxc6 O-O 12. cxb7 Rb8 13. Qd3 Qb6 14. O-O e4 15. Qe2 Rxb7 {0-1 (34) Bai,X (2029)-Song,Y (2277) Shaoxing 2019}) 10. Nxe7+ Qxe7 11. Bd3 Rac8 12. O-O Nb4 13. f4 Nxd3 14. cxd3 Rc6 15. Na5 {[#] And now fxe5 would win.} Rc5 {[%cal Bc6c5,Bc5b5,Bb5b4][%mdl 32]} 16. b4 Rb5 17. a4 Rxb4 18. Qe1 $1 {[%emt 1:07:59]} Qd8 $2 {[%emt 1:29:49][%mdl 8192] Weighted Error Value: White=0.13 (very precise) /Black=0.17 (very precise)} 1-0

[Event "Skagerrak Kragero 2022"]
[Site "Kragero"]
[Date "2022.06.02"]
[Round "1.5"]
[White "Gaboyan, Susanna"]
[Black "Hryzlova, Sofiia"]
[Result "1/2-1/2"]
[ECO "A08"]
[WhiteElo "2247"]
[BlackElo "2157"]
[Annotator "TA"]
[PlyCount "110"]
[EventDate "2022.06.02"]
[EventType "tourn"]
[EventCountry "NOR"]
[SourceTitle "playchess.com"]
[Source "ChessBase"]
[SourceQuality "1"]
[TimeControl "5400+30"]

{[%evp 13,110,0,18,-17,-14,-27,-25,-27,-26,-34,3,0,0,0,0,0,0,-8,26,9,12,8,57,65,87,83,166,120,144,146,210,197,281,179,181,92,76,15,14,6,7,7,7,8,7,-194,8,5,10,3,4,10,17,0,0,0,0,0,30,0,0,0,0,0,37,8,0,0,77,68,293,293,585,566,578,525,404,245,509,427,608,125,68,0,0,0,0,0,0,0,0,0,0,0,0,0,0,0,0]} 1. Nf3 Nf6 2. g3 g6 3. Bg2 Bg7 4. O-O O-O 5. d3 d5 6. Nbd2 c5 {6...Nc6 gains popularity.} 7. e4 e6 {[%cal Be7e6,Be6e5][%mdl 32]} 8. Qe2 {A08: King's Indian Attack.} Nc6 9. c3 a5 10. Rd1 {Black has an edge.} b6 11. Nf1 {[#]} Qc7 $146 ({Predecessor:} 11... Ba6 12. e5 Nd7 13. Bf4 f6 14. exf6 Qxf6 15. Re1 Rae8 16. Bg5 Qf7 17. Qd2 e5 {½-½ (69) Piesik,P (2418)-Villegas,P (2364) Chess.com INT 2020}) 12. Bf4 e5 13. exd5 {[%cal Rf3e5]} exf4 14. dxc6 Re8 {Against Qe5} (14... Qxc6 $2 15. Ne5 Bg4 16. Nxg4 $18 (16. Bxc6 Bxe2 17. Re1 Bxf1 $16)) 15. Qc2 Bf5 (15... Qxc6 $2 16. Ng5 Nd5 17. c4 $18) 16. Qa4 fxg3 17. hxg3 Re2 (17... Rad8 $11 {is more appropriate.}) 18. Qb5 (18. Ne3 Rxe3 19. fxe3 Bh6 $11) 18... Ng4 19. Rd2 Rae8 (19... Ne5 $16) 20. d4 $18 Rxd2 21. N1xd2 Bh6 {[#]} (21... Bf8 $16 {was worth a try.} 22. d5 Bd6) 22. Nc4 $1 {Black must now prevent d5.} (22. dxc5 bxc5 23. Nc4 (23. Qxc5 Nxf2 24. Kxf2 Be3+ 25. Qxe3 Rxe3 $11) 23... Rb8 24. Qxc5 Bf8 25. Qxa5 Qxc6) 22... Be4 (22... cxd4 {is a better defense.} 23. cxd4 (23. Nxd4 Bd3 $11) 23... Re2) 23. dxc5 bxc5 24. Qxc5 (24. Nh2 $18 Nxf2 25. Kxf2 Bxg2 26. Ng4 (26. Kxg2 $2 Re2+ 27. Kf3 Qe7 $19) 26... Bxc6 27. Nf6+ (27. Nxh6+ Kg7 $17) 27... Kh8 28. Nxe8 Bxb5 29. Nxc7 Bxc4 30. b3) 24... Bf8 $16 25. Qg5 (25. Qxa5 $16 Qxc6 26. Ncd2) 25... f5 $11 (25... Qxc6 $2 26. Qxg4 (26. Nxa5 Qc8 $14) 26... f5 27. Nfe5 (27. Nxa5 fxg4 28. Nxc6 gxf3 $17) 27... Qxc4 28. Qxg6+ (28. Nxc4 fxg4 29. Nxa5 Bxg2 $18) 28... hxg6 29. Nxc4 $18) 26. Nd4 Bh6 {A strong pair of Bishops.} 27. Qh4 Bxg2 28. Kxg2 {The board is on fire.} Bg7 {[#] Threatens to win with ...Bxd4.} 29. Ne3 $2 (29. Kg1 $11 {and White has nothing to worry.}) 29... Bxd4 $2 (29... Nxe3+ $19 30. fxe3 Re4) 30. Nxg4 Qxc6+ 31. Kg1 {aiming for Nh6+.} fxg4 32. cxd4 {[%mdl 4096] Endgame KQR-KQR} Qe4 33. Qf6 Rf8 34. Qe5 Qc2 {[%csl LRb2,LRf2]} 35. Qe3 Rf3 36. Qe6+ Rf7 37. Qe8+ Rf8 38. Qe3 Rf3 39. Qe1 Qxb2 40. Rd1 Qc2 (40... Qc3 $11 {remains equal.}) 41. Rd2 $16 Qc4 (41... Qc7 $14) 42. d5 $18 {[%cal Bd4d5,Bd5d6][%mdl 32]} Qc8 $2 (42... Rf8 {was necessary.} 43. d6 Qf7) 43. d6 {Strongly threatening d7.} Qd7 44. Qe5 Rf5 45. Qe4 {Qd4 is the strong threat.} Rf6 $2 (45... a4 {keeps fighting.} 46. Qxg4 Kg7 47. Qd4+ Rf6) 46. Qd5+ Re6 (46... Rf7 $142 47. a4 Kg7 48. Qxa5 Qc6 49. Qe5+ Kg8) 47. Qa8+ $2 (47. Rd4 $18 {and White stays clearly on top.}) 47... Kf7 $16 (47... Kg7 $2 48. Qxa5 Re1+ 49. Kh2 $18) 48. Qh8 {White is much more active.} ({But not} 48. Qxa5 Rxd6 49. Rxd6 Qxd6 $11) ({White should play} 48. Qa6 $14) 48... Re1+ $11 {The position is equal.} 49. Kh2 Qc6 {[%csl Ge1][%cal Rc6h1]} 50. Qxh7+ Kf6 {[%csl Gc6][%cal Re1h1]} 51. Qh8+ $1 Kf7 {[%csl Gc6][%cal Re1h1]} 52. Qh7+ $1 Kf6 {[%csl Gc6][%cal Re1h1]} 53. Qh8+ $1 Kf7 {[%csl Gc6][%cal Re1h1]} 54. Qh7+ $1 Kf6 {[%csl Ge1][%cal Rc6h1]} 55. Qh8+ $1 {[%emt 1:56:19]} Kf7 {[%emt 1:55:22] Black escapes into a draw.  Weighted Error Value: White=0.37/Black=0.40} 1/2-1/2

[Event "Skagerrak Kragero 2022"]
[Site "Kragero"]
[Date "2022.06.02"]
[Round "2.1"]
[White "Rakhmangulova, Anastasiya"]
[Black "Hryzlova, Sofiia"]
[Result "1-0"]
[ECO "C07"]
[WhiteElo "2245"]
[BlackElo "2157"]
[Annotator "TA"]
[PlyCount "123"]
[EventDate "2022.06.02"]
[EventType "tourn"]
[EventCountry "NOR"]
[SourceTitle "playchess.com"]
[Source "ChessBase"]
[SourceQuality "1"]
[TimeControl "5400+30"]

{[%evp 20,123,43,34,32,41,49,18,55,59,59,49,87,88,93,79,122,113,120,120,116,91,118,83,80,25,16,0,2,0,69,25,50,52,113,111,118,129,203,206,801,160,137,148,147,156,217,213,228,164,324,325,287,285,274,162,162,143,148,110,165,154,153,147,279,271,254,97,112,18,29,20,46,48,47,41,46,8,8,8,8,8,8,8,10,10,19,21,20,8,65,65,29986,29987,29988,29989,29989,29987,29990,29987,29995,29996,29996,29997,29997,29998]} 1. e4 e6 2. d4 d5 3. Nd2 c5 4. exd5 Qxd5 5. Ngf3 cxd4 6. Bc4 Qd7 7. O-O a6 8. Nb3 Qc7 9. Qe2 Bd6 10. Nbxd4 Ne7 11. Re1 Nbc6 {C07: French Tarrasch: 3...c5, 4 Ngf3 and 4 exd5 Qxd5.} 12. Nxc6 Nxc6 {[#]} 13. a3 $146 ({Predecessor:} 13. b3 Bb4 14. Rd1 Bc3 15. Rb1 b5 16. Bd3 Bb7 17. Be4 Rc8 18. Bg5 h6 19. Bh4 {½-½ (48) Mammadzada,G (2316)-Malakhatko,V (2542) Baku 2014}) 13... Bd7 {The position is equal.} 14. b4 O-O {[%cal Oc6e5]} 15. Bb2 {Inhibits Ne5.} Rae8 16. Rad1 {Black must now prevent Qd3.} Bc8 17. Bd3 {[%cal Bc4d3,Bd3b1,Bb1a2][%mdl 32] White is more active.} h6 18. c4 b6 {Against c5} 19. Bb1 {Hoping for Qd3.} f5 20. Ba2 Kh7 21. Rd3 e5 {[%cal Oc6d4]} 22. c5 (22. Re3 $16) 22... bxc5 $11 23. bxc5 Bxc5 24. Rc1 (24. Bxe5 Nxe5 25. Nxe5 a5 $17) 24... Qb6 (24... Bd4 $11 25. Nxd4 exd4) 25. Rb3 (25. Ng5+ $5 Kg6 26. Rdc3 $11 (26. Rb3 Qa7 $14)) 25... Qa7 26. Qc2 Rd8 27. h4 $36 {[%mdl 2048] Keeping Black busy.} (27. Nxe5 $6 Nxe5 28. Bxe5 Qe7 $1 $11) 27... Be6 (27... Rd5 $2 28. Rc3 Nd4 29. Nxd4 exd4 30. Rxc5 $18 (30. Bxd5 dxc3 31. Bxc3 Bxa3 $11)) 28. Qxc5 Rd1+ 29. Kh2 $18 Rxc1 $2 (29... Qxc5 30. Rxc5 Bxb3) 30. Qxa7 $2 (30. Qxc1 Bxb3 31. Bxb3 Qb6 $16) (30. Qxf8 $18 {is the precise move to win. Rb7 is the strong threat.} Rd1 31. Rb6 $3 {[%mdl 512]}) 30... Nxa7 $16 31. Bxc1 Bxb3 32. Bxb3 Rc8 (32... Nc6 $16 33. Bd5 Rf6) 33. Be3 $18 Nb5 34. a4 f4 $2 (34... Nd4) 35. Bb6 (35. axb5 fxe3 36. fxe3 axb5 $11) 35... Rb8 36. a5 ({Less strong is} 36. axb5 Rxb6 37. Bc2+ (37. Nxe5 Rxb5 38. Bc2+ Kg8 $11) 37... Kg8 $16) 36... Re8 37. h5 (37. Bf7 $142 Re7 38. Bc4) 37... e4 38. Ng1 Re5 39. Bf7 Kh8 (39... Nd6 $16 {is a better defense.} 40. Bg6+ Kg8) 40. Ne2 Nd6 {[#]} 41. Bg6 f3 (41... Nc4 $16) 42. gxf3 ({Weaker is} 42. Nd4 fxg2 43. Kxg2 Nc4 $16) 42... exf3 {[#]} 43. Nd4 (43. Nf4 $1 $18 Rg5 44. Bd3) 43... Nc4 $16 44. Nxf3 (44. Nc6 $16 Rd5 45. Nb8 (45. Bf7 Nxb6 46. axb6 Rb5 $11) 45... Nxa5 46. Nxa6) 44... Rb5 45. Nd4 Rb2 46. Bc7 {And now Bd3 would win.} Rxf2+ 47. Kg3 Rd2 48. Nb3 Rd7 49. Bf4 Rd5 50. Bf7 Rd3+ 51. Kg4 $1 Rxb3 52. Bxc4 Ra3 53. Bxa6 {This bishop pair is nice.} Rxa5 54. Bc4 Ra4 (54... g6 $11 55. hxg6 h5+ 56. Kh4 Kg7) 55. Bf7 $14 Rxf4+ $2 {[%mdl 8192] This move loses the game for Black.} 56. Kxf4 {KB-KPP. White mates.} Kh7 57. Kf5 Kh8 58. Ke6 Kh7 59. Ke7 Kh8 60. Kf8 Kh7 61. Bg6+ Kh8 {[%emt 1:54:17]} 62. Bb1 {[%emt 2:00:07] Weighted Error Value: White=0.28 (precise) /Black=0.38} 1-0

[Event "Skagerrak Kragero 2022"]
[Site "Kragero"]
[Date "2022.06.02"]
[Round "2.2"]
[White "Skaslien, Ingrid"]
[Black "Gaboyan, Susanna"]
[Result "0-1"]
[ECO "D85"]
[WhiteElo "1884"]
[BlackElo "2247"]
[Annotator "TA"]
[PlyCount "64"]
[EventDate "2022.06.02"]
[EventType "tourn"]
[EventCountry "NOR"]
[SourceTitle "playchess.com"]
[Source "ChessBase"]
[SourceQuality "1"]
[TimeControl "5400+30"]

{[%evp 18,64,-14,-12,-14,-80,-78,-70,-67,-83,-111,-112,-69,-78,-77,-120,-120,-127,-120,-138,-116,-183,-175,-216,-146,-139,-133,-130,-95,-260,-266,-655,-633,-643,-645,-633,-577,-632,-588,-611,-581,-637,-602,-5214,-2046,-1233,-768,-29976,-29976]} 1. d4 Nf6 2. c4 g6 3. Nc3 d5 4. cxd5 Nxd5 5. e4 Nxc3 6. bxc3 Bg7 7. Nf3 c5 8. Be3 Nc6 9. Be2 Bg4 10. Rb1 Bxf3 {D85: Exchange Grünfeld: Unusual White 7th moves and lines with 7 Nf3.} 11. Bxf3 (11. gxf3 $11 {remains equal.} cxd4 12. cxd4) 11... cxd4 $17 12. cxd4 Bxd4 {Black is slightly better.} 13. Bxd4 Nxd4 14. O-O b5 15. e5 Rb8 {[#]} 16. Be4 $146 ({Predecessor:} 16. Rb4 Nxf3+ 17. Qxf3 O-O 18. Rh4 e6 19. Qh3 h5 20. g4 f5 21. exf6 Qxf6 22. gxh5 {½-½ (33) Romon Poves,R (2135)-Rudenco,A Zaragoza 2003}) 16... O-O 17. Rb4 Ne6 18. Qb1 Qb6 19. h4 (19. a4 $17 {keeps fighting.}) 19... a5 $19 20. Rb2 Qd4 21. Rd1 Qxe5 22. Rd5 Qf6 {And now ...Nd4 would win.} 23. h5 $2 {[#] Loses the game.} (23. Rdxb5 $17 {was called for.} Rxb5 24. Rxb5) 23... Nf4 {[%cal Be6f4,Bf4e2,Be2c3][%mdl 32]} 24. Rdxb5 (24. Rdd2) 24... Rxb5 25. Rxb5 Ne2+ 26. Kf1 Nc3 {[%csl LRb1,LRb5]} 27. Qd3 Nxb5 28. Qxb5 Qa1+ 29. Bb1 Rc8 {[#] White must now prevent ...Rc1+.} 30. hxg6 hxg6 {( -> ...Rc1+)} 31. Ke2 Qd4 {...Rc5 is the strong threat.} 32. Qxa5 {[%emt 1:43:55]} Qb2+ {[%emt 0:50:30] Weighted Error Value: White=1.04/Black=0.34} 0-1

[Event "Skagerrak Kragero 2022"]
[Site "Kragero"]
[Date "2022.06.02"]
[Round "2.3"]
[White "Verbin, Valentina"]
[Black "Tarleva, Diana"]
[Result "1-0"]
[ECO "A96"]
[WhiteElo "2067"]
[BlackElo "2160"]
[Annotator "TA"]
[PlyCount "129"]
[EventDate "2022.06.02"]
[EventType "tourn"]
[EventCountry "NOR"]
[SourceTitle "playchess.com"]
[Source "ChessBase"]
[SourceQuality "1"]
[TimeControl "5400+30"]

{[%evp 13,129,49,57,52,52,54,62,55,116,127,130,125,125,125,118,121,157,150,156,161,145,110,114,0,0,35,84,0,325,314,312,325,309,314,362,364,359,363,410,391,462,379,507,458,561,568,482,534,585,411,413,430,414,412,427,421,428,427,533,533,567,561,594,587,646,642,690,615,1110,1062,1138,1022,1210,843,1123,1024,1301,1278,1439,1389,1304,927,1620,823,3618,1656,2120,2224,1788,1580,2239,2014,2622,2316,29971,29973,29966,29969,29969,29966,29962,6107,29976,29977,29978,29979,29979,29980,29979,29980,29980,29981,29984,29985,29985,29986,29986,29985]} 1. d4 e6 2. c4 f5 3. g3 Nf6 4. Bg2 d6 5. Nf3 Be7 6. Nc3 O-O 7. O-O Ne4 8. Nxe4 {A96: Classical Dutch: Fluid Systems: Early deviations.} fxe4 9. Nd2 d5 10. f3 {White is slightly better.} c5 (10... Bf6 $14) 11. fxe4 $16 dxe4 12. dxc5 ({Reject} 12. Bxe4 $6 Qxd4+ 13. Kh1 Rxf1+ 14. Qxf1 Nc6 $11) (12. Nxe4 Rxf1+ 13. Qxf1 cxd4 $14) 12... Rxf1+ 13. Qxf1 Qd4+ 14. Kh1 Na6 15. Nxe4 {[#]} Nxc5 $146 ({Predecessor:} 15... Bd7 16. Bg5 Bxg5 17. Nxg5 Rf8 18. Qd1 Qxb2 19. Rb1 Qxa2 20. c6 Bxc6 21. Bxc6 bxc6 22. Qd3 g6 23. Nxe6 Ra8 24. Rf1 Qb2 25. Qf3 {1-0 (25) Lalic,B (2492)-Arutyunova,D (2304) England 2011}) 16. Nxc5 ({Don't do} 16. Bg5 $6 Nxe4 17. e3 (17. Bxe7 Nf2+ 18. Kg1 Ne4+ 19. e3 Qxe3+ 20. Kh1 Nf2+ 21. Kg1 Ne4+ 22. Kh1 Nf2+ 23. Kg1 Ne4+ $11) 17... Qc5 18. Bxe7 Nxg3+ 19. hxg3 Qxe7 $14) 16... Qxc5 17. b3 Bd7 18. Bxb7 (18. Qg1 $16) 18... Rf8 $14 19. Bf3 $1 {aiming for Qg1.} e5 {[#]} (19... Bc6 $14) 20. Qd1 (20. Qe1 $1 $16) 20... Bh3 $2 {[%mdl 8192] White now steadily converts the win.} (20... Rxf3 $1 $11 {and Black has nothing to worry.} 21. exf3 Qf2 22. Qd5+ Kf8 23. Qa8+ Kf7) 21. Qd5+ $18 Kh8 22. Qxc5 Bxc5 23. Bb2 Bd6 24. Rd1 Bc7 25. Ba3 Rf6 26. Bc5 a5 27. Bg2 Bg4 28. h3 Bc8 29. Be7 Rf7 30. Bd8 {[#] Strongly threatening Bxc7.} g6 31. Bxc7 Rxc7 {[%mdl 4096] Endgame KRB-KRB} 32. Rd5 {[%csl LRa5,LRe5]} a4 33. Rxe5 Kg7 34. g4 Kf6 35. Ra5 Bd7 36. c5 axb3 37. axb3 {[%cal Ba2b3,Bb3b4,Bb4b5,Bb5b6][%mdl 32]} Be6 38. b4 Ke5 39. e3 Rc8 40. Kh2 Rb8 41. b5 {And now b6 would win.} Bd5 42. Bxd5 Kxd5 {KR-KR} 43. b6 Kc6 44. Kg3 Re8 45. Kf4 h6 46. h4 Kd5 47. Rb5 Rf8+ 48. Kg3 Kc4 49. Rb1 {Threatening mate with b7.} Kxc5 50. b7 Rb8 51. Kf4 Kd5 52. e4+ {[%cal Be3e4,Be4e5][%mdl 32]} Kd4 53. e5 {Intending e6 and mate.} Kd5 54. Rb6 Rf8+ 55. Rf6 Rb8 56. Rd6+ Kc5 57. Rxg6 Rxb7 58. Rxh6 {White mates.} Rb1 59. Kf5 Re1 60. Ke6 Ra1 61. g5 {[%cal Bg4g5,Bg5g6][%mdl 32]} Kd4 62. g6 Ke4 63. Rh5 Ra6+ 64. Kf7 Ra7+ {[%emt 1:56:12]} 65. Kg8 {[%emt 2:01:00] Weighted Error Value: White=0.17 (very precise) /Black=0.42} 1-0

[Event "Skagerrak Kragero 2022"]
[Site "Kragero"]
[Date "2022.06.02"]
[Round "2.4"]
[White "Doluhanova, Evgeniya"]
[Black "Machlik, Monika"]
[Result "1-0"]
[ECO "A20"]
[WhiteElo "2270"]
[BlackElo "2134"]
[Annotator "TA"]
[PlyCount "63"]
[EventDate "2022.06.02"]
[EventType "tourn"]
[EventCountry "NOR"]
[SourceTitle "playchess.com"]
[Source "ChessBase"]
[SourceQuality "1"]
[TimeControl "5400+30"]

{[%evp 9,63,-4,0,-12,0,0,14,18,22,11,20,30,43,31,48,0,35,45,95,44,52,55,74,74,77,83,95,98,92,94,111,104,163,164,192,184,188,193,377,365,366,359,349,358,311,258,235,238,392,379,351,219,550,584,628,637]} 1. c4 e5 2. d3 Nf6 3. a3 d5 4. cxd5 Nxd5 5. Nf3 Nc6 6. e4 {A20: English Opening: 1...e5.} Nf6 7. Be2 Bg4 8. Nbd2 {[#] The position is equal.} Bd6 $146 ({Predecessor:} 8... a5 9. b3 Bc5 10. Bb2 Qe7 11. O-O O-O 12. Nxe5 Nxe5 13. Bxe5 Qxe5 14. Bxg4 Nxg4 15. Qxg4 {½-½ (32) Edouard,R (2635)-Santos Ruiz,M (2583) Germany 2021}) 9. b4 a6 10. h3 Be6 11. Bb2 O-O 12. O-O (12. Nc4 $14) 12... Qe7 13. Rc1 {[%cal Oc1c6]} Rad8 {[#]} ({Better is} 13... Nd7 $14) 14. Re1 (14. Rxc6 $1 $16 {Rc1 is the strong threat.} bxc6 15. d4) 14... Nd7 $1 $14 15. Nc4 f6 16. Nxd6 {Black is now going downhill.} Qxd6 17. Qc2 Qe7 18. d4 exd4 19. Bxd4 {[%cal Bb2d4,Bd4e3,Be3f4,Bf4e5,Be5g3][%mdl 32]} Qf7 20. Be3 {[%cal Oe2a6] White is more active.} Ndb8 (20... Ra8 $16 {was worth a try.}) 21. Bf4 $18 Rd7 22. Qc3 Kh8 23. a4 Ne7 $2 (23... Qe7 {might work better.}) 24. Nd4 f5 25. Be5 (25. Bxc7 Nbc6 $18) 25... Ba2 26. exf5 Nxf5 27. Nxf5 Qxf5 28. Bg3 {[#] Threatens to win with Bg4. A strong pair of Bishops.} Qg6 (28... Qf6 29. Bg4 Rdf7 30. Qxf6 gxf6 31. Rxc7 Rxc7) 29. Bg4 Rdf7 30. Re2 ({Less strong is} 30. Bxc7 Nd7 31. Rcd1 (31. Qd2 h5 $16) 31... Nf6 $18) 30... Bb1 (30... h5 {is more resistant.}) 31. Re6 Qd3 {[%emt 1:43:21]} 32. Qb2 {[%emt 1:27:05] Weighted Error Value: White=0.08 (flawless) /Black=0.39} 1-0

[Event "Skagerrak Kragero 2022"]
[Site "Kragero"]
[Date "2022.06.03"]
[Round "3.1"]
[White "Grave, Jacob Templen"]
[Black "Rakhmangulova, Anastasiya"]
[Result "1/2-1/2"]
[ECO "A58"]
[WhiteElo "2227"]
[BlackElo "2245"]
[Annotator "TA"]
[PlyCount "76"]
[EventDate "2022.06.02"]
[EventType "tourn"]
[EventCountry "NOR"]
[SourceTitle "playchess.com"]
[Source "ChessBase"]
[SourceQuality "1"]
[TimeControl "5400+30"]

{[%evp 9,76,35,41,33,33,43,34,26,22,38,21,35,28,37,37,43,45,40,54,51,54,37,35,45,41,27,41,8,33,0,102,87,74,79,59,55,141,136,171,135,191,175,161,114,199,70,162,177,172,156,189,184,168,8,8,6,8,8,8,0,27,26,26,0,0,0,0,0,0]} 1. d4 Nf6 2. c4 {[%cal Bc2c4,Bc4b5,Bb5a6][%mdl 32]} c5 3. d5 b5 4. cxb5 a6 5. bxa6 g6 6. Nc3 {A58: Benko/Volga Gambit: Lines with 5 bxa6.} Bg7 7. e4 O-O 8. Nf3 {White is slightly better.} Qa5 9. Bd2 Bxa6 10. Be2 d6 11. O-O Bxe2 12. Qxe2 {[%emt 1:27:19]} Qa6 {[%emt 1:31:18]} 13. Qd1 {[%emt 1:25:32]} Nbd7 {[%emt 1:31:40]} 14. Qc2 {[%emt 1:23:37]} Rfb8 {[%emt 1:32:04]} 15. a4 {[%emt 1:17:28]} Qb7 {[%emt 1:30:32]} 16. Rfb1 {[%emt 0:32:52]} Qb3 {[%emt 1:22:45]} 17. Qd3 {[%emt 1:05:14]} Rb4 {[%emt 0:52:10]} 18. Ra3 Qc4 19. Qc2 {[#]} Rab8 $146 (19... Nxe4 $11 20. b3 Nxc3 21. bxc4 Rxb1+ 22. Be1 Rc1 $1) ({Predecessor:} 19... Ng4 20. b3 Qa6 21. h3 Nge5 22. Ne1 Rab8 23. Raa1 c4 24. bxc4 Rxb1 25. Rxb1 Rxb1 26. Nxb1 Nxc4 27. Bc3 Nc5 {½-½ (27) Suvorov,A (2267)-Nguyen,A (2401) Schwaebisch Gmuend 2020}) 20. b3 Qa6 21. h3 c4 22. Be3 Rc8 ({Better is} 22... Nc5 $14) 23. Nd4 $36 {[%mdl 2048] Strongly threatening Nc6. White is really pushing.} Ne5 {Prevents Nc6.} 24. f4 cxb3 (24... Neg4 $16 25. hxg4 Nxg4) 25. Raxb3 $18 Rxb3 26. Qxb3 ({Inferior is} 26. Nxb3 Nxd5 27. Qe2 (27. exd5 $2 Rxc3 28. Qf2 Nd7 $19) 27... Qxe2 28. Nxe2 Nxe3 $17) (26. Rxb3 $18 Nc4 27. Qe2) 26... Qd3 {[#]} (26... Bh6 $16) 27. Nce2 (27. Nd1 $1 $18 Qxb3 28. Rxb3) 27... Qxb3 (27... Nxe4 $14 28. Qxd3 (28. fxe5 Nc3 $11) 28... Nxd3) 28. Rxb3 ({Don't do} 28. Nxb3 $6 Nc4 29. Rc1 Nxe4 $14) 28... Nc4 29. Nc6 Kf8 {[#]} 30. a5 $1 {aiming for a6.} Ra8 31. Rc3 $2 (31. Kh2 $18) 31... Nxd5 $1 $11 32. Rxc4 Nxe3 33. Rb4 {[%cal Oa5a6] Hoping for a6!} Ke8 $1 34. Rb7 e6 35. Re7+ Kf8 36. Rd7 {a6 is the strong threat.} Bf6 {The position is equal.} 37. Rxd6 Nc4 38. Rd3 {[%emt 1:45:51]} Ra6 {[%emt 1:47:13] Black escapes into a draw.  Weighted Error Value: White=0.20 (precise) /Black=0.20 (precise)} 1/2-1/2